bitfinex-derivatives/quotes_SOLF0:USTF0_20250307
["timestamp","ask_amount","ask_price","bid_price","bid_amount"]
[1741382562862,0.05321853,143.51,143.48,7.02321249]
[1741382563163,0.05321853,143.51,143.48,0.05171249]
[1741382563966,0.05321853,143.51,143.49,43.46915853]
[1741382564266,47.14,143.58,143.49,43.46915853]
[1741382564768,47.14,143.58,143.49,50.43985853]
[1741382565169,47.14,143.58,143.49,43.46915853]
[1741382565370,0.05332947,143.55,143.52,0.05007527]
[1741382566068,0.05332947,143.55,143.49,43.46915853]
[1741382566069,0.05332947,143.55,143.44,209.18]
[1741382566264,43.46915853,143.56,143.42,43.46915853]
[1741382566459,6.9683,143.55,143.45,43.46915853]
[1741382566764,47.14,143.58,143.45,43.46915853]
[1741382567166,0.04776935,143.53,143.5,0.04709098]
[1741382567365,47.12,143.52,143.39,43.46915853]
[1741382567566,6.9736,143.44,143.35,101.15279395]
[1741382567769,47.1,143.46,143.35,101.15279395]
[1741382568270,47.1,143.46,143.35,97.24709395]
[1741382568472,0.05009573,143.42,143.35,97.24709395]
[1741382568671,0.05009573,143.42,143.36,43.46915853]
[1741382568973,0.05009573,143.42,143.33,43.73035853]
[1741382569175,47.1,143.46,143.36,43.46915853]
[1741382569369,0.0503246,143.39,143.36,43.46915853]
[1741382569669,0.05001955,143.39,143.38,6.9764]
[1741382570475,0.05001955,143.39,143.36,43.46915853]
[1741382570878,0.05001955,143.39,143.33,43.46915853]
[1741382571669,0.05001955,143.39,143.3,9.63388285]
[1741382571874,6.9769,143.37,143.32,6.9792]
[1741382572078,0.04955225,143.36,143.32,6.9792]
[1741382572271,0.04955225,143.36,143.31,43.46915853]
[1741382572473,0.04955225,143.36,143.28,43.73885853]
[1741382572683,0.04955225,143.36,143.31,43.46915853]
[1741382572974,0.04955225,143.36,143.32,6.9792]
[1741382573175,0.04955225,143.36,143.27,75.87459806]
[1741382573479,6.9779,143.35,143.29,6.9806]
[1741382573671,0.04912724,143.33,143.29,6.9806]
[1741382573871,0.04912724,143.33,143.28,43.46915853]
[1741382575175,0.04912724,143.33,143.31,43.46915853]
[1741382575376,47.08,143.4,143.31,43.46915853]
[1741382576475,47.08,143.4,143.34,0.0445819]
[1741382576476,0.05238411,143.37,143.34,0.0445819]
[1741382577880,0.05238411,143.37,143.36,6.9773]
[1741382577881,8.411e-05,143.37,143.36,6.9773]
[1741382579378,3.7381,143.5,143.36,47.06]
[1741382579582,47.06,143.49,143.39,43.46915853]
[1741382580080,47.06,143.49,143.36,47.06]
[1741382580584,0.05348141,143.44,143.41,0.04895121]
[1741382581783,43.46915853,143.6,143.43,43.46915853]
[1741382582083,50.6997,143.59,143.55,6.968]
[1741382582284,50.6997,143.59,143.47,43.46915853]
[1741382582477,43.46915853,143.55,143.44,43.46915853]
[1741382582681,43.46915853,143.55,143.42,3.8929]
[1741382582878,0.05140247,143.5,143.47,0.04587948]
[1741382583181,0.05140247,143.5,143.49,6.971]
[1741382583386,50.6997,143.59,143.47,43.51503801]
[1741382583587,3.6295,143.61,143.56,43.46915853]
[1741382583885,108.98693793,143.63,143.59,43.46915853]
[1741382584188,108.98693793,143.63,143.53,43.46915853]
[1741382584388,90.48915853,143.65,143.51,3.975]
[1741382584680,0.05333278,143.59,143.56,0.0519274]
[1741382584879,47.02,143.66,143.58,43.46915853]
[1741382585078,0.05229964,143.59,143.58,43.46915853]
[1741382585278,3.6896,143.68,143.58,43.46915853]
[1741382585585,99.57876495,143.7,143.64,43.46915853]
[1741382585886,95.79146495,143.7,143.64,43.46915853]
[1741382586580,0.05343297,143.68,143.67,43.46915853]
[1741382586785,95.59458368,143.7,143.67,43.46915853]
[1741382587084,95.33608368,143.7,143.67,43.46915853]
[1741382587388,95.33608368,143.7,143.64,43.46915853]
[1741382587585,47.0,143.75,143.64,43.46915853]
[1741382587886,0.04816836,143.71,143.68,0.04816545]
[1741382588187,0.04816836,143.71,143.69,43.46915853]
[1741382589480,46.98,143.77,143.69,43.46915853]
[1741382589681,54.8374,143.81,143.73,43.46915853]
[1741382590287,54.8374,143.81,143.7,43.46915853]
[1741382590782,0.04620208,143.76,143.74,0.04713961]
[1741382590981,46.94,143.75,143.64,43.46915853]
[1741382591283,46.94,143.75,143.6,209.18]
[1741382591284,46.94,143.75,143.61,43.46915853]
[1741382591480,7.8774,143.81,143.67,43.46915853]
[1741382592186,0.04556592,143.75,143.72,0.05003528]
[1741382593082,46.9,143.88,143.73,43.46915853]
[1741382593389,11.5229,143.88,143.77,43.46915853]
[1741382593584,54.99205853,143.88,143.77,43.46915853]
[1741382593789,11.5229,143.88,143.77,43.46915853]
[1741382594387,0.04492165,143.84,143.81,0.05156614]
[1741382594694,6.955,143.82,143.81,0.05156614]
[1741382595093,0.04492165,143.84,143.81,0.05156614]
[1741382595684,6.955,143.82,143.81,0.05156614]
[1741382595890,0.04492165,143.84,143.81,0.05156614]
[1741382596591,0.04492165,143.84,143.71,43.46915853]
[1741382596795,43.46915853,143.82,143.68,43.46915853]
[1741382597387,255.68,143.85,143.68,43.46915853]
[1741382597593,43.46915853,143.81,143.68,43.46915853]
[1741382597794,6.9579,143.76,143.75,0.04804317]
[1741382598095,0.05183166,143.78,143.68,43.46915853]
[1741382598491,46.84,143.8,143.71,43.46915853]
[1741382598689,90.30915853,143.8,143.68,43.46915853]
[1741382598996,7.6635,143.79,143.67,46.86]
[1741382599292,0.04829767,143.75,143.73,0.04803253]
[1741382600896,46.86829767,143.75,143.73,0.04803253]
[1741382601493,102.874176,143.99,143.74,46.82]
[1741382601494,208.82,143.98,143.74,46.82]
[1741382601696,3.7813,143.89,143.78,43.46915853]
[1741382602100,3.665,143.88,143.75,43.46915853]
[1741382602398,7.3474,143.88,143.74,46.82]
[1741382602794,0.05192666,143.82,143.8,0.0513055]
[1741382603195,7.3474,143.88,143.8,0.0513055]
[1741382603687,6.99925734,143.85,143.8,0.0513055]
[1741382603894,0.04525734,143.85,143.8,0.0513055]
[1741382604293,0.04525734,143.85,143.8,7.0072055]
[1741382604700,0.04525734,143.85,143.8,0.0513055]
[1741382605304,0.04525734,143.85,143.82,6.9546]
[1741382605600,3.7813,143.89,143.83,43.46915853]
[1741382606093,3.7813,143.89,143.81,43.46915853]
[1741382606294,3.7813,143.89,143.81,6.9554]
[1741382606495,3.8665,143.88,143.81,6.9554]
[1741382606701,3.8665,143.88,143.78,43.46915853]
[1741382606896,0.04913659,143.86,143.83,0.05190041]
[1741382607399,46.82913659,143.86,143.83,0.05190041]
[1741382607896,3.659e-05,143.86,143.85,6.9536]
[1741382608795,3.8628,143.95,143.84,43.46915853]
[1741382609000,3.8628,143.95,143.78,43.46915853]
[1741382609001,3.8628,143.95,143.91,43.46915853]
[1741382609297,3.8628,143.95,143.88,43.46915853]
[1741382609504,3.8628,143.95,143.9,6.9511]
[1741382609803,3.8628,143.95,143.88,43.46915853]
[1741382610207,0.04949859,143.94,143.91,0.04658228]
[1741382611097,0.04949859,143.94,143.82,208.76]
[1741382611098,0.04949859,143.94,143.82,252.22915853]
[1741382611300,0.04949859,143.94,143.82,43.46915853]
[1741382611500,47.33195853,143.95,143.82,43.46915853]
[1741382611702,47.33195853,143.95,143.75,208.7]
[1741382611703,3.8628,143.95,143.85,43.46915853]
[1741382611901,6.9503,143.92,143.85,43.46915853]
[1741382612101,43.46915853,143.92,143.78,43.46915853]
[1741382612303,43.46915853,143.92,143.73,3.7032]
[1741382612304,43.46915853,143.89,143.73,3.7032]
[1741382612501,43.46915853,143.86,143.68,208.68]
[1741382612706,3.8136,143.85,143.76,6.9576]
[1741382612904,3.8136,143.85,143.68,208.68]
[1741382612905,46.72,143.84,143.77,43.46915853]
[1741382613105,46.72,143.84,143.81,6.9551]
[1741382613401,46.72,143.84,143.77,43.46915853]
[1741382613607,46.7682506,143.84,143.81,0.04625989]
[1741382614110,46.76627151,143.84,143.81,0.04493383]
[1741382614899,46.76627151,143.84,143.81,7.00033383]
[1741382615298,46.76627151,143.84,143.81,0.04493383]
[1741382616111,46.76627151,143.84,143.74,43.46915853]
[1741382616312,46.72,143.84,143.74,43.46915853]
[1741382616603,46.72,143.84,143.76,6.9575]
[1741382616805,46.72,143.84,143.74,43.46915853]
[1741382617207,0.04951179,143.8,143.79,6.9561]
[1741382617405,0.04951179,143.8,143.78,0.05077048]
[1741382617914,46.68,143.79,143.78,0.05077048]
[1741382618111,46.68,143.79,143.71,43.46915853]
[1741382618313,46.68,143.79,143.68,43.46915853]
[1741382618610,6.9581,143.76,143.68,43.46915853]
[1741382618912,50.4916,143.79,143.68,43.46915853]
[1741382619109,0.0479035,143.75,143.68,43.46915853]
[1741382619314,0.0479035,143.75,143.72,0.04993877]
[1741382619717,46.68,143.74,143.65,43.46915853]
[1741382620114,6.9607,143.71,143.65,43.46915853]
[1741382620316,46.68,143.74,143.65,43.46915853]
[1741382620616,6.9609,143.7,143.62,252.14915853]
[1741382620815,0.05191799,143.71,143.68,0.04443094]
[1741382621004,46.68,143.74,143.68,0.05305934]
[1741382621005,3.6775,143.73,143.68,0.05305934]
[1741382621217,0.0482882,143.71,143.68,0.05305934]
[1741382621612,6.9627,143.67,143.61,6.9649]
[1741382621916,46.68,143.68,143.63,43.46915853]
[1741382622217,46.68,143.69,143.59,9.63388285]
[1741382622418,46.68,143.69,143.6,43.46915853]
[1741382622716,0.04750327,143.66,143.63,0.04412]
[1741382623211,0.04750327,143.66,143.63,43.51327853]
[1741382623410,0.04750327,143.66,143.65,6.9633]
[1741382623609,3.27e-06,143.66,143.65,6.9633]
[1741382623817,3.27e-06,143.66,143.63,0.04412]
[1741382624212,3.27e-06,143.66,143.63,43.51327853]
[1741382624413,3.27e-06,143.66,143.65,6.9633]
[1741382626020,4.0063,143.75,143.65,3.48]
[1741382626219,4.0063,143.75,143.66,43.46915853]
[1741382626518,4.0063,143.75,143.63,43.46915853]
[1741382626712,3.9093,143.74,143.63,43.46915853]
[1741382626906,46.66,143.73,143.63,43.46915853]
[1741382627419,9.421e-05,143.69,143.67,0.04440551]
[1741382627716,9.421e-05,143.69,143.68,6.9618]
[1741382628112,3.7333,143.77,143.66,43.46915853]
[1741382628312,7.9145,143.81,143.73,43.46915853]
[1741382628615,7.9145,143.81,143.7,43.46915853]
[1741382629319,0.0499347,143.77,143.74,7.00272737]
[1741382629516,0.0499347,143.77,143.74,0.04382737]
[1741382632018,0.0499347,143.77,143.76,6.9579]
[1741382632424,3.47e-05,143.77,143.76,6.9579]
[1741382633226,3.47e-05,143.77,143.63,43.46915853]
[1741382633421,43.46915853,143.76,143.62,38.45147106]
[1741382633622,6.9623,143.68,143.62,38.45147106]
[1741382633814,46.6,143.67,143.62,38.45147106]
[1741382634122,50.2854,143.72,143.63,43.46915853]
[1741382634321,0.04404847,143.66,143.63,43.51573089]
[1741382634517,46.6,143.72,143.64,3.7623]
[1741382634920,46.6,143.75,143.66,43.46915853]
[1741382635122,46.6,143.76,143.66,43.46915853]
[1741382635826,6.9604,143.71,143.7,0.05103959]
[1741382636125,46.6,143.71,143.64,3.7623]
[1741382637126,0.04489908,143.69,143.66,0.05339607]
[1741382637320,1252.7,144.16,143.67,46.58]
[1741382637515,193.0,144.43,143.67,46.58]
[1741382637516,43.46915853,144.01,143.82,43.46915853]
[1741382637722,7.7159,143.99,143.84,43.46915853]
[1741382638219,43.46915853,143.95,143.83,208.78]
[1741382638424,0.0475462,143.93,143.9,0.04612991]
[1741382638617,0.0475462,143.93,143.81,6.9555]
[1741382638817,46.58,143.94,143.79,90.04915853]
[1741382639022,46.58,143.94,143.79,43.46915853]
[1741382639222,43.46915853,143.93,143.79,50.42525853]
[1741382639426,43.46915853,143.93,143.79,43.46915853]
[1741382639829,0.04664196,143.87,143.85,0.05172195]
[1741382640029,46.56,143.88,143.85,0.05172195]
[1741382640218,46.56,143.88,143.77,208.72]
[1741382640422,3.97443378,143.87,143.76,43.46915853]
[1741382640622,3.9263,143.87,143.76,43.46915853]
[1741382640818,3.9263,143.87,143.79,43.46915853]
[1741382641330,3.9263,143.87,143.79,50.42555853]
[1741382641525,3.9263,143.87,143.82,0.04472252]
[1741382641526,0.04905415,143.84,143.82,0.04472252]
[1741382642029,46.56,143.83,143.76,43.46915853]
[1741382642427,46.56,143.83,143.73,43.46915853]
[1741382642933,50.42465853,143.82,143.68,50.43095853]
[1741382643119,43.46915853,143.82,143.68,43.46915853]
[1741382643324,0.05298398,143.76,143.74,0.04588231]
[1741382643732,0.05271658,143.76,143.74,0.04794133]
[1741382645026,0.05271658,143.76,143.68,43.46915853]
[1741382645528,46.54,143.77,143.65,43.46915853]
[1741382645729,64.40915853,143.76,143.62,43.46915853]
[1741382646237,0.04820937,143.7,143.59,43.46915853]
[1741382646433,46.52,143.69,143.56,43.46915853]
[1741382646630,53.4814,143.69,143.57,6.9669]
[1741382646831,53.4814,143.69,143.56,43.46915853]
[1741382646832,46.52,143.69,143.56,43.46915853]
[1741382647234,3.6262,143.68,143.56,43.46915853]
[1741382647434,0.04625228,143.64,143.61,0.02096454]
[1741382647739,46.52,143.63,143.61,0.02096454]
[1741382648231,0.04625228,143.64,143.61,0.02096454]
[1741382649129,0.04625228,143.64,143.62,43.46915853]
[1741382649338,0.04625228,143.64,143.63,6.9642]
[1741382649540,46.54,143.7,143.62,43.46915853]
[1741382649936,46.54,143.7,143.59,43.46915853]
[1741382650238,7.5982,143.69,143.59,43.46915853]
[1741382650831,0.05052885,143.65,143.63,0.04999204]
[1741382652141,0.05052885,143.65,143.64,6.9637]
[1741382652342,46.52,143.7,143.63,0.04999204]
[1741382652533,46.52,143.7,143.57,43.46915853]
[1741382652534,11.149,143.75,143.69,6.9613]
[1741382652734,46.52,143.74,143.65,43.46915853]
[1741382653236,46.52,143.74,143.62,208.86]
[1741382653434,0.05004187,143.71,143.68,0.05278213]
[1741382654636,3.53004187,143.71,143.5,44.68058352]
[1741382654839,43.46915853,143.7,143.51,50.3689]
[1741382655142,46.52,143.69,143.6,6.9656]
[1741382655339,67.46,143.69,143.54,43.46915853]
[1741382655536,43.46915853,143.67,143.51,3.8489]
[1741382655734,0.04895954,143.63,143.61,0.04600644]
[1741382655939,46.5,143.62,143.56,6.9676]
[1741382656446,46.5,143.62,143.51,3.8489]
[1741382656639,46.5,143.62,143.54,43.46915853]
[1741382657145,0.04821386,143.59,143.54,43.46915853]
[1741382657646,1.386e-05,143.59,143.58,6.9667]
[1741382658844,46.5,143.65,143.57,86.93831706]
[1741382659040,208.86,143.69,143.6,43.46915853]
[1741382659245,255.36,143.69,143.6,43.46915853]
[1741382659448,3.9525,143.74,143.6,43.46915853]
[1741382659646,46.5,143.73,143.63,43.46915853]
[1741382659846,50.2832,143.73,143.63,43.46915853]
[1741382660047,50.2832,143.73,143.69,6.961]
[1741382660346,50.2832,143.73,143.67,0.05313104]
[1741382660645,0.05168256,143.72,143.67,0.05313104]
[1741382661047,3.71648256,143.72,143.67,0.05313104]
[1741382662548,3.71648256,143.72,143.62,43.46915853]
[1741382662742,3.71648256,143.72,143.57,89.96915853]
[1741382662743,3.6648,143.72,143.57,89.96915853]
[1741382663145,3.6648,143.72,143.6,43.46915853]
[1741382663442,3.6648,143.72,143.63,43.46915853]
[1741382663747,3.6648,143.72,143.69,6.961]
[1741382664148,3.71695937,143.72,143.63,43.46915853]
[1741382664339,3.6648,143.72,143.63,43.46915853]
[1741382664545,0.05029773,143.69,143.63,43.46915853]
[1741382664746,0.05029773,143.69,143.68,6.9618]
[1741382665444,3.9525,143.77,143.66,43.46915853]
[1741382665645,3.9525,143.77,143.7,43.46915853]
[1741382666046,3.9525,143.77,143.74,6.9586]
[1741382666242,3.9525,143.77,143.7,43.46915853]
[1741382666443,3.9525,143.77,143.76,6.9579]
[1741382666644,3.9525,143.77,143.7,43.46915853]
[1741382666645,3.9461,143.78,143.72,0.04483234]
[1741382666851,0.04392376,143.78,143.7,43.46915853]
[1741382667056,0.04392376,143.78,143.77,6.9575]
[1741382667553,0.05048985,143.79,143.74,0.04440444]
[1741382667850,0.05048985,143.79,143.78,6.957]
[1741382668448,8.985e-05,143.79,143.78,6.957]
[1741382670154,46.42,143.86,143.77,0.04681528]
[1741382670351,46.42,143.86,143.75,46.42]
[1741382670352,46.42,143.86,143.79,43.46915853]
[1741382671155,46.42,143.86,143.84,6.9537]
[1741382671356,46.42,143.86,143.81,0.05314814]
[1741382671547,46.46654563,143.86,143.81,0.05314814]
[1741382673552,46.46654563,143.86,143.83,6.9542]
[1741382673855,46.46654563,143.86,143.81,0.05314814]
[1741382674159,43.46915853,143.83,143.64,38.45147106]
[1741382674359,43.46915853,143.8,143.67,43.46915853]
[1741382674559,46.38,143.79,143.67,43.46915853]
[1741382674761,46.38,143.79,143.64,81.92062959]
[1741382674960,43.46915853,143.77,143.64,81.92062959]
[1741382675460,0.04582529,143.72,143.69,0.04645072]
[1741382675857,0.04582529,143.72,143.64,9.63388285]
[1741382676050,7.79942529,143.72,143.64,9.63388285]
[1741382676860,14.75932529,143.72,143.64,9.63388285]
[1741382677563,7.79942529,143.72,143.64,9.63388285]
[1741382678256,7.79942529,143.72,143.63,6.9639]
[1741382678455,7.7536,143.72,143.63,6.9639]
[1741382678757,0.04784139,143.69,143.61,43.46915853]
[1741382679156,0.04784139,143.69,143.63,6.9641]
[1741382679350,7.7536,143.72,143.63,6.9641]
[1741382679560,0.04720024,143.67,143.63,6.9641]
[1741382679863,0.04720024,143.67,143.61,43.46915853]
[1741382680557,46.34,143.79,143.64,86.93831706]
[1741382680752,46.34,143.79,143.65,93.70145853]
[1741382680960,47.11735853,143.78,143.66,6.9624]
[1741382681149,47.11735853,143.78,143.65,47.36145853]
[1741382681150,7.6765,143.78,143.65,47.36145853]
[1741382681351,7.6765,143.78,143.68,43.46915853]
[1741382681858,0.04803114,143.73,143.7,0.05227949]
[1741382682259,0.04803114,143.73,143.71,6.96]
[1741382682661,0.04803114,143.73,143.7,0.05227949]
[1741382682862,0.04803114,143.73,143.72,6.9599]
[1741382683360,46.34,143.8,143.71,43.46915853]
[1741382683962,53.2961,143.8,143.73,6.9592]
[1741382684356,46.34,143.8,143.71,43.46915853]
[1741382684667,0.05272606,143.78,143.75,0.04804898]
[1741382685170,46.32,143.87,143.77,43.46915853]
[1741382685761,46.32,143.87,143.8,43.46915853]
[1741382685961,11.7175,143.91,143.8,43.46915853]
[1741382686267,0.04698287,143.85,143.82,0.04792353]
[1741382686470,46.32,143.9,143.8,43.46915853]
[1741382686666,11.7175,143.91,143.83,43.46915853]
[1741382687165,3.7996,143.91,143.85,6.9531]
[1741382687372,3.7996,143.91,143.83,43.46915853]
[1741382687765,54.0126,143.96,143.83,43.46915853]
[1741382687969,0.05068628,143.88,143.86,0.05142902]
[1741382688165,11.5288,143.96,143.86,0.05142902]
[1741382688371,57.8088,143.96,143.86,43.46915853]
[1741382688765,6.9488,143.95,143.88,6.952]
[1741382688967,6.9488,143.95,143.86,43.46915853]
[1741382689273,57.8088,143.96,143.86,43.46915853]
[1741382689470,0.05071664,143.92,143.89,0.04613706]
[1741382691074,6.9507,143.91,143.89,0.04613706]
[1741382691270,0.05071664,143.92,143.89,0.04613706]
[1741382692271,0.05071664,143.92,143.91,6.9507]
[1741382692475,0.05071664,143.92,143.89,0.04613706]
[1741382693175,67.87878487,145.27,143.9,43.46915853]
[1741382693176,43.46915853,144.08,143.9,43.46915853]
[1741382693468,4.028,144.09,144.0,43.46915853]
[1741382693670,4.028,144.09,143.97,43.46915853]
[1741382694070,46.22,144.11,144.0,43.46915853]
[1741382694372,0.05354816,144.04,144.02,0.04479346]
[1741382694573,46.22,144.09,144.02,0.04479346]
[1741382694774,0.05194787,144.04,144.0,43.46915853]
[1741382694970,0.05194787,144.04,143.95,46.22]
[1741382695171,0.05194787,144.04,143.95,89.68915853]
[1741382695374,46.22,144.09,143.92,43.46915853]
[1741382695375,46.22,144.09,144.01,0.05005452]
[1741382695677,0.05137551,144.06,144.01,43.46915853]
[1741382695875,46.2,144.11,143.99,43.46915853]
[1741382695876,46.2,144.11,144.04,43.46915853]
[1741382696067,73.78302783,144.16,144.08,43.03379143]
[1741382696270,264.39522479,144.23,144.13,86.06758286]
[1741382696571,75.25007799,144.28,144.19,86.06758286]
[1741382696771,75.25007799,144.28,144.24,43.03379143]
[1741382697174,0.04693253,144.27,144.24,43.03379143]
[1741382697577,75.25007799,144.28,144.24,43.03379143]
[1741382697971,27.61317799,144.28,144.27,43.03379143]
[1741382698168,74.21171699,144.29,144.28,6.9329]
[1741382698372,172.98931901,144.4,144.27,86.06758286]
[1741382698575,559.89235816,144.64,144.39,43.03379143]
[1741382698576,43.03379143,144.57,144.39,43.03379143]
[1741382698778,43.03379143,144.55,144.42,6.9261]
[1741382699078,815.11005467,144.61,144.42,49.95989143]
[1741382699079,9.29659026,144.43,144.42,49.95989143]
[1741382699277,9.026e-05,144.43,144.42,56.5661]
[1741382699476,9.026e-05,144.43,144.42,6.9261]
[1741382699679,0.0445972,144.44,144.42,6.9261]
[1741382699882,0.0445972,144.44,144.41,6.97265621]
[1741382700085,6.9845972,144.44,144.41,0.04605621]
[1741382700875,0.0445972,144.44,144.41,0.04605621]
[1741382701078,0.0445972,144.44,144.42,153.35170974]
[1741382702185,6.9845972,144.44,144.42,153.35170974]
[1741382702380,43.03379143,144.43,144.42,53.74090974]
[1741382702586,43.03379143,144.43,144.29,46.1]
[1741382702780,208.16,144.42,144.22,46.06]
[1741382702982,43.03379143,144.31,144.18,46.06]
[1741382703189,43.03379143,144.25,144.12,43.03379143]
[1741382703381,43.03379143,144.22,144.09,43.03379143]
[1741382703778,208.16,144.21,144.06,43.03379143]
[1741382703986,0.04651157,144.17,144.14,0.04818386]
[1741382704185,43.03379143,144.16,144.14,0.04818386]
[1741382704487,0.04651157,144.17,144.14,0.04818386]
[1741382704682,254.22,144.28,144.14,3.50818386]
[1741382704889,43.03379143,144.22,144.15,29.85780012]
[1741382705083,46.06,144.21,144.15,29.85780012]
[1741382705285,43.03379143,144.2,144.15,29.85780012]
[1741382705586,43.03379143,144.17,144.15,23.81690012]
[1741382705786,208.18,144.25,144.09,8.25402289]
[1741382705990,0.05102141,144.17,144.15,0.04462348]
[1741382706697,0.05102141,144.17,144.16,284.0030445]
[1741382707588,0.05102141,144.17,144.15,0.04462348]
[1741382708191,3.666,144.24,144.15,6.98362348]
[1741382708383,3.666,144.24,144.15,0.04462348]
[1741382708690,43.03379143,144.22,144.08,43.03379143]
[1741382708993,46.04,144.21,144.08,43.03379143]
[1741382709194,43.03379143,144.19,144.07,46.04]
[1741382709486,0.05306557,144.16,144.13,0.04787949]
[1741382709986,46.09306557,144.16,144.13,0.04787949]
[1741382710181,89.126857,144.16,144.13,0.04787949]
[1741382710785,92.586857,144.16,144.02,43.03379143]
[1741382710987,89.126857,144.16,144.01,3.7091]
[1741382711287,89.126857,144.16,144.0,3.9062]
[1741382711288,6.9421,144.09,144.0,3.9062]
[1741382711488,208.2,144.08,144.0,3.9062]
[1741382711992,0.04783107,144.05,144.03,0.04561451]
[1741382712698,46.02,144.04,143.94,3.7765]
[1741382712890,89.05379143,144.04,143.94,3.7765]
[1741382713191,6.9452,144.03,143.94,3.7765]
[1741382713391,46.02,144.04,143.94,3.7765]
[1741382713590,89.05379143,144.04,143.93,8.25402289]
[1741382713796,43.03379143,144.01,143.87,12.04822289]
[1741382713991,6.9473,143.98,143.97,0.04583001]
[1741382714189,6.9473,143.98,143.87,8.25402289]
[1741382714190,297.31379143,143.98,143.87,8.25402289]
[1741382714490,297.31379143,143.98,143.86,49.7129]
[1741382714798,297.31379143,143.98,143.84,43.03379143]
[1741382714987,43.03379143,143.95,143.82,46.02]
[1741382715390,46.02,143.97,143.84,43.03379143]
[1741382715690,0.04436605,143.9,143.87,0.05327014]
[1741382715991,46.02,143.91,143.83,12.64139599]
[1741382716189,0.05027805,143.9,143.87,0.04547035]
[1741382716387,208.26,143.89,143.83,12.64139599]
[1741382716589,208.26,143.89,143.81,10.11144513]
[1741382716790,208.26,143.89,143.81,17.06694513]
[1741382716993,208.26,143.89,143.8,43.03379143]
[1741382717191,208.26,143.89,143.78,59.36808742]
[1741382717387,208.26,143.89,143.78,16.33429599]
[1741382717597,251.29379143,143.89,143.79,22.75940777]
[1741382717793,0.04494029,143.85,143.82,0.05081366]
[1741382718287,0.04494029,143.85,143.83,6.32151986]
[1741382718991,0.04494029,143.85,143.83,13.27601986]
[1741382719193,254.4,143.95,143.83,9.80151986]
[1741382719387,208.36,143.95,143.85,43.03379143]
[1741382719590,208.36,143.95,143.87,6.9524]
[1741382719789,208.36,143.95,143.85,43.03379143]
[1741382719991,208.36,143.95,143.88,43.03379143]
[1741382720189,208.36,143.95,143.91,43.03379143]
[1741382720390,0.04400655,143.93,143.91,43.03379143]
[1741382720591,3.8345,144.0,143.91,43.03379143]
[1741382720785,254.46,144.01,143.91,43.03379143]
[1741382721097,254.46,144.01,143.92,29.08650985]
[1741382721289,208.42,144.08,143.97,43.03379143]
[1741382721484,254.46,144.08,143.97,43.03379143]
[1741382721892,0.05043359,144.04,144.01,0.05133489]
[1741382722098,6.9454,144.02,144.01,0.05133489]
[1741382722390,0.05043359,144.04,144.01,0.05133489]
[1741382722894,0.05043359,144.04,143.95,12.68431694]
[1741382723095,0.05043359,144.04,143.96,16.48976638]
[1741382723295,43.03379143,144.05,143.96,16.48976638]
[1741382723892,208.42,144.08,143.97,49.37600927]
[1741382724196,0.05090438,144.02,143.99,0.04473905]
[1741382724587,208.42,144.08,143.98,16.51245017]
[1741382724792,0.05271584,144.02,143.99,0.05142422]
[1741382725186,6.943,144.07,144.0,6.9463]
[1741382725389,0.04410169,144.02,143.97,43.03379143]
[1741382725594,208.42,144.08,143.97,46.02]
[1741382725789,0.05250829,144.03,144.01,0.04922645]
[1741382725997,89.03379143,144.04,143.93,8.25402289]
[1741382726293,0.0458855,144.03,143.94,8.25402289]
[1741382726489,89.03379143,144.04,143.94,8.25402289]
[1741382726689,89.03379143,144.04,143.95,6.17511479]
[1741382726891,43.03379143,144.0,143.95,6.17511479]
[1741382727196,254.4,143.99,143.95,0.13761479]
[1741382727400,254.44512768,143.99,143.91,9.88199488]
[1741382727590,254.4,143.99,143.96,0.04422228]
[1741382727997,0.05303373,143.99,143.96,0.04422228]
[1741382728386,0.05303373,143.99,143.97,6.9474]
[1741382728587,208.4,144.06,143.97,9.78197627]
[1741382728790,208.4,144.06,143.98,43.03379143]
[1741382729201,208.4,144.06,143.98,52.8157677]
[1741382729700,49.924,144.1,143.98,9.78197627]
[1741382729995,0.04473386,144.03,144.01,0.04377825]
[1741382730201,6.9463,144.0,143.99,9.78197627]
[1741382730393,254.38,144.03,143.99,9.78197627]
[1741382730593,254.38,144.03,143.93,4.0028]
[1741382730787,254.38,144.03,143.92,8.25402289]
[1741382730996,254.38,144.03,143.93,9.80340283]